bitfinex-derivatives/quotes_BTCF0:USTF0_20250426
["timestamp","ask_amount","ask_price","bid_price","bid_amount"]
[1745650913721,0.4868657,94672.0,94671.0,0.5298]
[1745650916926,0.4868657,94672.0,94671.0,0.54630286]
[1745650917321,0.4868657,94672.0,94671.0,0.5298]
[1745650917516,0.4868657,94672.0,94671.0,0.54630286]
[1745650920424,0.4868657,94672.0,94671.0,0.5298]
[1745650930630,0.4868657,94672.0,94671.0,0.54622384]
[1745650931023,0.4868657,94672.0,94671.0,0.57772384]
[1745650933837,0.4868657,94672.0,94671.0,0.60772384]
[1745650934030,0.4868657,94672.0,94671.0,0.60780284]
[1745650936530,0.4868657,94672.0,94671.0,0.5913]
[1745650936931,0.4868657,94672.0,94671.0,0.60780284]
[1745650937439,0.4868657,94672.0,94671.0,0.5913]
[1745650937738,0.4868657,94672.0,94671.0,0.60780284]
[1745650938336,0.4868657,94672.0,94671.0,0.57780284]
[1745650938835,0.4868657,94672.0,94671.0,0.5613]
[1745650939741,0.4868657,94672.0,94671.0,0.5298]
[1745650943138,0.4868657,94672.0,94671.0,0.5612]
[1745650947234,0.4868657,94672.0,94671.0,0.5924]
[1745650948537,0.4868657,94672.0,94671.0,0.5298]
[1745650949330,0.4868657,94672.0,94671.0,0.169]
[1745650949532,0.4868657,94672.0,94671.0,0.5298]
[1745650950335,0.4868657,94672.0,94671.0,0.5617]
[1745650954444,0.4565657,94672.0,94671.0,0.78937166]
[1745650954641,0.16,94672.0,94671.0,0.90357814]
[1745650954832,0.2111571,94677.0,94676.0,0.2111535]
[1745650955039,0.2911571,94677.0,94676.0,0.63926244]
[1745650955547,0.2911571,94677.0,94676.0,0.70466064]
[1745650956134,0.2911571,94677.0,94676.0,0.87266064]
[1745650956536,0.2931571,94677.0,94676.0,0.87266064]
[1745650956740,0.2931571,94677.0,94676.0,0.87466064]
[1745650956943,0.2911571,94677.0,94676.0,0.87466064]
[1745650957535,0.2911571,94677.0,94676.0,0.82385416]
[1745650957736,0.2911571,94677.0,94676.0,1.18465416]
[1745650960742,0.2911571,94677.0,94676.0,0.97350066]
[1745650960943,0.2911571,94677.0,94676.0,0.957]
[1745650961539,0.3236571,94677.0,94676.0,0.957]
[1745650961739,0.3236571,94677.0,94676.0,1.168158]
[1745650962740,0.3236571,94677.0,94676.0,1.18465957]
[1745650964140,0.3236571,94677.0,94676.0,0.97350157]
[1745650965439,0.3236571,94677.0,94676.0,1.18465957]
[1745650965639,0.3236571,94677.0,94676.0,0.46305957]
[1745650965845,0.3236571,94677.0,94676.0,0.82385957]
[1745650966236,0.3236571,94677.0,94676.0,0.8238592]
[1745650973453,0.3236571,94677.0,94676.0,0.82385896]
[1745650976566,0.211146,94682.0,94681.0,0.2111468]
[1745650976752,0.0052,94698.0,94681.0,0.01650096]
[1745650976953,0.2563121,94698.0,94697.0,0.7216]
[1745650977152,0.2163121,94698.0,94697.0,0.73810096]
[1745650977353,0.2263121,94698.0,94697.0,0.75136211]
[1745650977959,0.2263121,94698.0,94697.0,0.96247006]
[1745650978149,0.2263121,94698.0,94697.0,1.13047006]
[1745650979055,0.2263121,94698.0,94697.0,1.22707006]
[1745650979258,0.2333121,94698.0,94697.0,1.22707006]
[1745650979765,0.2293121,94698.0,94697.0,1.22707006]
[1745650979960,0.2263121,94698.0,94697.0,1.22907006]
[1745650981967,0.0152,94698.0,94697.0,1.22907006]
[1745650982265,0.2263089,94698.0,94697.0,1.22907006]
[1745650983453,0.2263089,94698.0,94697.0,1.22906983]
[1745650992160,0.2263089,94698.0,94697.0,1.21257235]
[1745650992367,0.2263089,94698.0,94697.0,1.22906983]
[1745650993160,0.2580089,94698.0,94697.0,1.22906983]
[1745650998579,0.2580089,94698.0,94697.0,1.19656983]
[1745650998782,0.2903089,94698.0,94697.0,1.19656983]
[1745650998978,0.0469,94698.0,94697.0,1.19656983]
[1745650999277,0.0527686,94714.0,94702.0,0.0527745]
[1745650999469,0.2753853,94713.0,94712.0,0.2110777]
[1745650999674,0.4081561,94713.0,94712.0,0.65337344]
[1745651000074,0.4081561,94713.0,94712.0,0.6533723]
[1745651000269,0.4081561,94713.0,94712.0,0.8048777]
[1745651000471,0.4609269,94713.0,94712.0,0.8048777]
[1745651000884,0.4609269,94713.0,94712.0,0.82137231]
[1745651001074,0.4609269,94713.0,94712.0,0.8048777]
[1745651001275,0.4609269,94713.0,94712.0,0.82137227]
[1745651001872,0.4639269,94713.0,94712.0,0.82137227]
[1745651002072,0.4649269,94713.0,94712.0,0.82137227]
[1745651002479,0.4649269,94713.0,94712.0,0.82137223]
[1745651003883,0.4649269,94713.0,94712.0,0.82947222]
[1745651005180,0.4649269,94713.0,94712.0,0.61839452]
[1745651005676,0.4649269,94713.0,94712.0,0.82947222]
[1745651009974,0.4649269,94713.0,94712.0,0.82947218]
[1745651011376,0.4649269,94713.0,94712.0,0.46867218]
[1745651011578,0.4649269,94713.0,94712.0,0.82947218]
[1745651013280,0.3593755,94713.0,94712.0,0.82947218]
[1745651013471,0.3593755,94713.0,94712.0,0.86087218]
[1745651014084,0.1483,94713.0,94712.0,0.86087218]
[1745651014281,0.116,94713.0,94712.0,0.86087218]
[1745651016778,0.116,94713.0,94712.0,0.86087086]
[1745651018284,0.3270755,94713.0,94712.0,0.89367086]
[1745651018880,0.116,94713.0,94712.0,0.89367086]
[1745651020281,0.116,94713.0,94712.0,0.89367104]
[1745651023885,0.116,94713.0,94712.0,0.89367101]
[1745651024483,0.116,94713.0,94712.0,1.25447101]
[1745651025188,0.116,94713.0,94712.0,1.266841]
[1745651025586,0.116,94713.0,94712.0,1.25034768]
[1745651025888,0.116,94713.0,94712.0,1.266841]
[1745651030989,0.116,94713.0,94712.0,1.26684091]
[1745651032087,0.116,94713.0,94712.0,0.54524091]
[1745651032298,0.116,94713.0,94712.0,1.26684091]
[1745651033490,0.116,94713.0,94712.0,0.54524091]
[1745651033689,0.116,94713.0,94712.0,1.26684091]
[1745651037584,0.116,94713.0,94712.0,1.31754712]
[1745651042493,0.116,94713.0,94712.0,0.59594712]
[1745651042684,0.116,94713.0,94712.0,1.31754712]
[1745651046697,0.1491,94713.0,94712.0,1.31754712]
[1745651048495,0.3601755,94713.0,94712.0,1.31754712]
[1745651049297,0.3601755,94713.0,94712.0,1.28614712]
[1745651049998,0.3601755,94713.0,94712.0,1.23544091]
[1745651051891,0.3601755,94713.0,94712.0,1.23544183]
[1745651053607,0.3601755,94713.0,94712.0,0.87464305]
[1745651056703,0.1491,94713.0,94712.0,0.87464305]
[1745651058004,0.3601755,94713.0,94712.0,0.87464305]
[1745651058394,0.1491,94713.0,94712.0,0.87464305]
[1745651059306,0.1491,94713.0,94712.0,0.92534483]
[1745651060495,0.3601755,94713.0,94712.0,0.92534483]
[1745651060707,0.3601755,94713.0,94712.0,0.92534361]
[1745651061396,0.3601755,94713.0,94712.0,0.92534269]
[1745651064300,0.1491,94713.0,94712.0,0.92534269]
[1745651064499,0.1491,94713.0,94712.0,0.9578427]
[1745651065003,0.1491,94713.0,94712.0,0.95784271]
[1745651067810,0.1491,94713.0,94712.0,0.92534271]
[1745651068004,0.3601755,94713.0,94712.0,0.92534271]
[1745651068204,0.3601755,94713.0,94712.0,0.89647947]
[1745651068514,0.3601755,94713.0,94712.0,0.92534271]
[1745651071710,0.3601755,94713.0,94712.0,1.28614271]
[1745651071901,0.3601755,94713.0,94712.0,1.28614309]
[1745651072106,0.3601755,94713.0,94712.0,1.23544131]
[1745651072304,0.7157595,94713.0,94712.0,0.91419397]
[1745651072509,0.2110889,94707.0,94703.0,0.04317]
[1745651072703,0.4010889,94707.0,94706.0,0.45061081]
[1745651072908,0.5066769,94707.0,94706.0,0.45061081]
[1745651073105,0.5066769,94707.0,94706.0,0.61861081]
[1745651073309,0.5686769,94707.0,94706.0,0.61861081]
[1745651073507,0.5686769,94707.0,94706.0,0.23296]
[1745651074316,0.5696769,94707.0,94706.0,0.23296]
[1745651076115,0.4640889,94707.0,94706.0,0.24088405]
[1745651086121,0.4640889,94707.0,94706.0,0.60168405]
[1745651094521,0.4640889,94707.0,94706.0,0.24088405]
[1745651094723,0.4640889,94707.0,94706.0,0.60168405]
[1745651098414,0.4640889,94707.0,94706.0,0.61818072]
[1745651098818,0.4640889,94707.0,94706.0,0.55322072]
[1745651099830,0.358588,94707.0,94697.0,0.02239115]
[1745651100021,0.2111067,94699.0,94697.0,0.02239115]
[1745651100221,0.4911067,94699.0,94697.0,0.02239115]
[1745651100428,0.2111089,94698.0,94697.0,0.01326115]
[1745651100622,0.2111112,94697.0,94688.0,0.0318]
[1745651100823,0.4411112,94697.0,94696.0,0.37338708]
[1745651101030,0.5071112,94697.0,94696.0,0.37338708]
[1745651101234,0.5071112,94697.0,94696.0,0.54138708]
[1745651102325,0.5071112,94697.0,94696.0,0.54338708]
[1745651103325,0.5071112,94697.0,94696.0,0.59404606]
[1745651103625,0.5071112,94697.0,94696.0,0.60177769]
[1745651103826,0.5071112,94697.0,94696.0,0.18831871]
[1745651104035,0.5081112,94697.0,94696.0,0.18831871]
[1745651104928,0.5081112,94697.0,94696.0,0.25421871]
[1745651110931,0.5081112,94697.0,94696.0,0.18831871]
[1745651111227,0.5081112,94697.0,94691.0,0.03405]
[1745651111228,0.2111223,94692.0,94691.0,0.03405]
[1745651111429,0.5511223,94692.0,94691.0,0.03405]
[1745651111637,0.0527816,94691.0,94686.0,0.00158422]
[1745651111824,0.2111335,94687.0,94686.0,0.00158422]
[1745651112025,0.3911335,94687.0,94686.0,0.00158422]
[1745651112225,0.3911335,94687.0,94686.0,0.16958422]
[1745651112623,0.4547335,94687.0,94686.0,0.16958422]
[1745651112833,0.4547335,94687.0,94686.0,0.17746261]
[1745651114327,0.4547335,94687.0,94686.0,0.18046261]
[1745651114527,0.4547335,94687.0,94686.0,0.19276267]
[1745651114929,0.4547335,94687.0,94686.0,0.19176267]
[1745651116136,0.4547335,94687.0,94686.0,0.19076267]
[1745651120131,0.4547335,94687.0,94686.0,0.55156267]
[1745651120337,0.4547335,94687.0,94686.0,0.58286267]
[1745651121038,0.4547335,94687.0,94686.0,0.55156267]
[1745651121426,0.4547335,94687.0,94686.0,0.54997845]
[1745651122838,0.4547335,94687.0,94686.0,0.54897845]
[1745651123138,0.4557335,94687.0,94686.0,0.54897845]
[1745651124941,0.4557335,94687.0,94686.0,0.18817845]
[1745651147351,0.4557335,94687.0,94686.0,0.21977845]
[1745651152158,0.4227335,94687.0,94686.0,0.21977845]
[1745651155964,0.4227335,94687.0,94686.0,0.58057845]
[1745651156955,0.4227335,94687.0,94686.0,0.21977845]
[1745651157459,0.4227335,94687.0,94686.0,0.58057845]
[1745651157965,0.4227335,94687.0,94686.0,0.21977845]
[1745651158266,0.4227335,94687.0,94686.0,0.58057845]
[1745651159566,0.4227335,94687.0,94686.0,0.21977845]
[1745651159772,0.4227335,94687.0,94686.0,0.58057845]
[1745651160459,0.3921335,94687.0,94686.0,0.59707874]
[1745651160662,0.3921335,94687.0,94686.0,0.80821423]
[1745651161171,0.3921335,94687.0,94686.0,0.59707853]
[1745651164462,0.3921335,94687.0,94686.0,0.23627853]
[1745651164666,0.3921335,94687.0,94686.0,0.59707853]
[1745651164867,0.3921335,94687.0,94686.0,0.62727853]
[1745651166172,0.3921335,94687.0,94686.0,0.62727814]
[1745651169871,0.3921335,94687.0,94686.0,0.61077845]
[1745651170874,0.3921335,94687.0,94686.0,0.62727814]
[1745651172173,0.3921335,94687.0,94686.0,0.61077845]
[1745651172773,0.3921335,94687.0,94686.0,0.24997845]
[1745651172972,0.3921335,94687.0,94686.0,0.61077845]
[1745651173375,0.3921335,94687.0,94686.0,0.62727814]
[1745651176282,0.3921335,94687.0,94686.0,0.62727812]
[1745651177091,0.3921335,94687.0,94686.0,0.83841382]
[1745651177381,0.3921335,94687.0,94686.0,0.85078819]
[1745651177780,0.3921335,94687.0,94686.0,0.83841382]
[1745651180481,0.3921335,94687.0,94686.0,0.47761382]
[1745651180684,0.3921335,94687.0,94686.0,0.83841382]
[1745651181285,0.3921335,94687.0,94686.0,0.90361382]
[1745651181683,0.3921335,94687.0,94686.0,0.88711415]
[1745651181984,0.3921335,94687.0,94686.0,0.90361324]
[1745651182782,0.3921335,94687.0,94686.0,0.88711415]
[1745651182984,0.3921335,94687.0,94686.0,0.90361324]
[1745651183285,0.3921335,94687.0,94686.0,0.88711415]
[1745651183582,0.3921335,94687.0,94686.0,0.54281324]
[1745651183785,0.3921335,94687.0,94686.0,0.88711415]
[1745651184283,0.3921335,94687.0,94686.0,0.90361324]
[1745651184584,0.3921335,94687.0,94686.0,0.88711415]
[1745651184775,0.3921335,94687.0,94686.0,0.9036132]
[1745651185283,0.3921335,94687.0,94686.0,0.88711415]
[1745651185677,0.3921335,94687.0,94686.0,0.90361317]
[1745651186878,0.3921335,94687.0,94686.0,0.90461317]
[1745651187078,0.3911335,94687.0,94686.0,0.90461317]
[1745651187277,0.3911335,94687.0,94686.0,0.90461314]
[1745651187785,0.3911335,94687.0,94686.0,0.90361314]
[1745651188979,0.3911335,94687.0,94686.0,0.69247744]
[1745651189174,0.4226335,94687.0,94686.0,0.69247744]
[1745651190385,0.4226335,94687.0,94686.0,0.66227744]
[1745651193277,0.4226335,94687.0,94686.0,0.30147744]
[1745651193480,0.4226335,94687.0,94686.0,0.66227744]
[1745651194684,0.4226335,94687.0,94686.0,0.71300874]
[1745651194875,0.4226335,94687.0,94686.0,0.66227744]
[1745651199692,0.4226335,94687.0,94686.0,0.64577845]
[1745651199889,0.4226335,94687.0,94686.0,0.66227805]
[1745651201393,0.4226335,94687.0,94686.0,0.30147805]
[1745651201698,0.4226335,94687.0,94686.0,0.66227805]
[1745651203093,0.4226335,94687.0,94686.0,0.30147805]
[1745651203300,0.4226335,94687.0,94686.0,0.66227805]
[1745651205094,0.4226335,94687.0,94686.0,0.64577845]
[1745651205290,0.4226335,94687.0,94686.0,0.66227804]
[1745651211590,0.4226335,94687.0,94686.0,0.63067804]
[1745651211790,0.4226335,94687.0,94686.0,0.56547804]
[1745651213493,0.4226335,94687.0,94686.0,0.54897845]
[1745651213993,0.4226335,94687.0,94686.0,0.56547912]
[1745651215204,0.4226335,94687.0,94686.0,0.54897845]
[1745651216003,0.4226335,94687.0,94686.0,0.56547912]
[1745651218607,0.4226335,94687.0,94686.0,0.20467912]
[1745651220903,0.4226335,94687.0,94686.0,0.18817845]
[1745651221098,0.4226335,94687.0,94686.0,0.20467912]
[1745651221897,0.4226335,94687.0,94686.0,0.18817845]
[1745651222098,0.4226335,94687.0,94686.0,0.02017845]
[1745651222302,0.2111357,94686.0,94685.0,0.04318]
[1745651222508,0.4527357,94686.0,94685.0,0.05968067]
[1745651222809,0.2111402,94684.0,94683.0,0.3608]
[1745651223009,0.4211402,94684.0,94683.0,0.37730074]
[1745651223411,0.4830402,94684.0,94683.0,0.37730074]
[1745651224312,0.4830402,94684.0,94683.0,0.54530075]
[1745651224610,0.4830402,94684.0,94683.0,0.56662919]
[1745651225312,0.4830402,94684.0,94683.0,0.57468118]
[1745651225610,0.4830402,94684.0,94683.0,0.57568118]
[1745651227111,0.4830402,94684.0,94683.0,0.60728118]
[1745651230012,0.4830402,94684.0,94683.0,0.57568118]
[1745651232319,0.4830402,94684.0,94683.0,0.60898118]
[1745651234419,0.4830402,94684.0,94683.0,0.63928118]
[1745651238317,0.4516402,94684.0,94683.0,0.63928118]
[1745651238633,0.4211402,94684.0,94683.0,0.63928112]
[1745651238825,0.21,94684.0,94683.0,0.86279851]
[1745651240025,0.4211402,94684.0,94683.0,0.86279851]
[1745651240323,0.4211402,94684.0,94683.0,0.8627974]
[1745651242121,0.4211402,94684.0,94683.0,0.5019974]
[1745651242322,0.4211402,94684.0,94683.0,0.8627974]
[1745651242917,0.4211402,94684.0,94683.0,0.69002765]
[1745651243517,0.4211402,94684.0,94683.0,0.70428001]
[1745651243719,0.4211402,94684.0,94683.0,0.91542241]
[1745651245617,0.4211402,94684.0,94683.0,0.91542273]
[1745651246127,0.4211402,94684.0,94683.0,0.55462273]
[1745651246322,0.4211402,94684.0,94683.0,0.91542273]
[1745651247524,0.4211402,94684.0,94683.0,0.70428033]
[1745651250621,0.4211402,94684.0,94683.0,0.91542273]
[1745651252615,0.4211402,94684.0,94683.0,0.70428033]
[1745651253020,0.4513402,94684.0,94683.0,0.70428033]
[1745651254930,0.4513402,94684.0,94683.0,0.91542273]
[1745651255131,0.4211402,94684.0,94683.0,0.91542273]
[1745651259131,0.4211402,94684.0,94683.0,0.9154227]
[1745651263827,0.4211402,94684.0,94683.0,0.5546227]
[1745651264028,0.4211402,94684.0,94683.0,0.9154227]
[1745651267631,0.4511402,94684.0,94683.0,0.9154227]
[1745651268338,0.4511402,94684.0,94683.0,0.9277976]
[1745651268538,0.4511402,94684.0,94683.0,0.6739803]
[1745651268739,0.4511402,94684.0,94683.0,0.6406803]
[1745651268931,0.4511402,94684.0,94683.0,0.64068034]
[1745651269132,0.4511402,94684.0,94683.0,0.62418043]
[1745651269939,0.4511402,94684.0,94683.0,0.83532283]
[1745651270839,0.4511402,94684.0,94683.0,0.86642283]
[1745651271940,0.4511402,94684.0,94683.0,0.50562283]
[1745651272140,0.4511402,94684.0,94683.0,0.86642283]
[1745651273840,0.4511402,94684.0,94683.0,0.91719593]
[1745651274235,0.4511402,94684.0,94683.0,0.86642283]
[1745651274743,0.4511402,94684.0,94683.0,0.91719733]
[1745651274941,0.4511402,94684.0,94683.0,0.86642283]
[1745651275841,0.4511402,94684.0,94683.0,0.50562283]
[1745651276052,0.4511402,94684.0,94683.0,0.86642283]
[1745651277440,0.4511402,94684.0,94683.0,0.70605824]
[1745651279944,0.4511402,94684.0,94683.0,0.34525824]
[1745651280145,0.4511402,94684.0,94683.0,0.70605824]
[1745651280539,0.4511402,94684.0,94683.0,0.60995824]
[1745651280739,0.4511402,94684.0,94683.0,0.55918043]
[1745651282645,0.4521402,94684.0,94683.0,0.55918043]
[1745651283050,0.4521402,94684.0,94683.0,0.55818043]
[1745651283941,0.4521402,94684.0,94683.0,0.19738043]
[1745651288148,0.4521402,94684.0,94683.0,0.55818043]
[1745651288752,0.2111669,94672.0,94671.0,0.3608]
[1745651289049,0.4511669,94672.0,94671.0,0.38060022]
[1745651289952,0.5133669,94672.0,94671.0,0.39167998]
[1745651290150,0.5133669,94672.0,94671.0,0.55967998]
[1745651290342,0.5133669,94672.0,94671.0,0.56167998]
[1745651290742,0.5133669,94672.0,94671.0,0.20087998]
[1745651291349,0.5133669,94672.0,94671.0,0.19787998]
[1745651291546,0.5133669,94672.0,94671.0,0.19887998]
[1745651291950,0.5133669,94672.0,94671.0,0.19787998]
[1745651292351,0.5133669,94672.0,94671.0,0.19687998]
[1745651293852,0.5143669,94672.0,94671.0,0.19587998]
[1745651294953,0.5153669,94672.0,94671.0,0.19587998]
[1745651311161,0.5153669,94672.0,94671.0,0.02787998]
[1745651311460,0.2111736,94669.0,94668.0,0.063]
[1745651311664,0.4211736,94669.0,94668.0,0.063]
[1745651312156,0.4211736,94669.0,94668.0,0.231]
[1745651312758,0.4221736,94669.0,94668.0,0.231]
[1745651313374,0.4221736,94669.0,94668.0,0.24907266]
[1745651314460,0.4221736,94669.0,94668.0,0.25707451]
[1745651321073,0.4536736,94669.0,94668.0,0.25707451]
[1745651345077,0.4536736,94669.0,94668.0,0.00800185]
[1745651345270,0.2112004,94657.0,94653.0,0.065]
[1745651345472,0.2112004,94657.0,94653.0,0.0972]
[1745651345473,0.5812004,94657.0,94653.0,0.0972]
[1745651345777,0.5812004,94657.0,94654.0,0.0322]
[1745651345968,0.5812004,94657.0,94656.0,0.38611461]
[1745651346169,0.6462004,94657.0,94656.0,0.55411461]
[1745651346376,0.6462004,94657.0,94656.0,0.55611461]
[1745651346572,0.6462004,94657.0,94656.0,0.55911461]
[1745651347374,0.6462004,94657.0,94656.0,0.38911461]
[1745651350173,0.6462004,94657.0,94656.0,0.55711461]
[1745651352269,0.6462004,94657.0,94656.0,0.38911461]
[1745651353969,0.6462004,94657.0,94656.0,0.02831461]
[1745651355483,0.6462004,94657.0,94656.0,0.06101461]
[1745651357683,0.6462004,94657.0,94656.0,0.02831461]
[1745651358079,0.6462004,94657.0,94656.0,0.19631461]
[1745651359187,0.6462004,94657.0,94656.0,0.02831461]
[1745651362685,0.13,94657.0,94656.0,1.27298861]
[1745651362878,0.0527874,94680.0,94672.0,0.2111625]
[1745651363184,0.2111625,94674.0,94673.0,0.0303]
[1745651363390,0.5211625,94674.0,94673.0,0.0303]
[1745651363982,0.2111647,94673.0,94672.0,0.168]
[1745651364183,0.2111758,94668.0,94667.0,0.0314]
[1745651364383,0.4411758,94668.0,94667.0,0.0314]
[1745651365783,0.4421758,94668.0,94667.0,0.0314]
[1745651366194,0.4740758,94668.0,94667.0,0.1994]
[1745651385799,0.4421758,94668.0,94667.0,0.2642]
[1745651387601,0.5075758,94668.0,94667.0,0.2642]
[1745651388604,0.5075758,94668.0,94667.0,0.2327]
[1745651394314,0.5075758,94668.0,94667.0,0.1994]
[1745651401820,0.2964,94668.0,94667.0,0.4105781]
[1745651402020,0.2964,94668.0,94667.0,0.50225957]
[1745651402021,0.231,94668.0,94667.0,0.50225957]
[1745651402324,0.231,94668.0,94667.0,0.6078905]
[1745651402519,0.0527847,94685.0,94667.0,0.6078905]
[1745651402520,0.2639314,94684.0,94683.0,0.2111424]
[1745651402715,0.32,94684.0,94683.0,0.58844611]
[1745651403225,0.5311402,94684.0,94683.0,0.82034611]
[1745651403719,0.32,94684.0,94683.0,0.82034611]
[1745651404733,0.324,94684.0,94683.0,0.82034611]
[1745651405218,0.5351402,94684.0,94683.0,0.8038424]
[1745651405424,0.5351402,94684.0,94683.0,0.82034192]
[1745651405625,0.5391402,94684.0,94683.0,0.82034192]
[1745651406224,0.3191402,94684.0,94683.0,0.82034192]
[1745651407922,0.3191402,94684.0,94683.0,0.82034188]
[1745651408922,0.3191402,94684.0,94683.0,0.82034187]
[1745651412724,0.3191402,94684.0,94683.0,0.82034188]
[1745651413628,0.3191402,94684.0,94683.0,0.45954188]
[1745651414333,0.3191402,94684.0,94683.0,0.82034188]
[1745651416029,0.3191402,94684.0,94683.0,0.45954188]
[1745651416333,0.3191402,94684.0,94683.0,0.82034188]
[1745651418123,0.3191402,94684.0,94683.0,0.45954189]
[1745651418336,0.3191402,94684.0,94683.0,0.82034189]
[1745651421335,0.3191402,94684.0,94683.0,0.45954189]
[1745651421539,0.3191402,94684.0,94683.0,0.82034189]
[1745651426230,0.3191402,94684.0,94683.0,0.8038424]
[1745651426438,0.3191402,94684.0,94683.0,0.82034189]
[1745651427039,0.3491402,94684.0,94683.0,0.82034189]
[1745651427238,0.3491402,94684.0,94683.0,0.45954189]
[1745651427441,0.3491402,94684.0,94683.0,0.82034189]
[1745651430533,0.3491402,94684.0,94683.0,0.45954189]
[1745651430839,0.3491402,94684.0,94683.0,0.82034191]
[1745651432631,0.3491402,94684.0,94683.0,0.83271653]
[1745651434432,0.3491402,94684.0,94683.0,0.83271652]
[1745651436343,0.3491402,94684.0,94683.0,0.8203419]
[1745651436536,0.3491402,94684.0,94683.0,0.51028469]
[1745651436743,0.3491402,94684.0,94683.0,0.87108469]
[1745651439733,0.3491402,94684.0,94683.0,0.87108471]
[1745651440839,0.3491402,94684.0,94683.0,0.65994231]
[1745651441245,0.3491402,94684.0,94683.0,0.62934231]
[1745651445043,0.3491402,94684.0,94683.0,0.61284279]
[1745651445248,0.3491402,94684.0,94683.0,0.62934283]
[1745651446750,0.3491402,94684.0,94683.0,0.21780004]
[1745651446940,0.3491402,94684.0,94683.0,0.57860015]
[1745651448752,0.3491402,94684.0,94683.0,0.57860005]
[1745651449054,0.3491402,94684.0,94683.0,0.62935365]
[1745651452354,0.3491402,94684.0,94683.0,0.62935315]
[1745651452747,0.3491402,94684.0,94683.0,0.84049555]
[1745651453656,0.3491402,94684.0,94683.0,0.47969555]
[1745651453857,0.3491402,94684.0,94683.0,0.84049555]
[1745651455455,0.3491402,94684.0,94683.0,0.62935315]
[1745651455657,0.3491402,94684.0,94683.0,0.69551315]
[1745651456161,0.3491402,94684.0,94683.0,0.72811315]
[1745651456763,0.3491402,94684.0,94683.0,0.93925555]
[1745651457863,0.3491402,94684.0,94655.0,0.10121459]
[1745651457864,0.143616,94684.0,94670.0,0.52192851]
[1745651458162,0.2111692,94671.0,94670.0,0.52192851]
[1745651458370,0.5811692,94671.0,94670.0,0.52192851]
[1745651459063,0.6444692,94671.0,94670.0,0.68992851]
[1745651460668,0.6454692,94671.0,94670.0,0.68992851]
[1745651460858,0.6464692,94671.0,94670.0,0.68992851]
[1745651462264,0.6464692,94671.0,94670.0,0.32912851]
[1745651462861,0.6464692,94671.0,94670.0,0.168]
[1745651481773,0.6464692,94671.0,94670.0,0.1999]
[1745651483776,0.6464692,94671.0,94670.0,0.21640322]
[1745651486470,0.6464692,94671.0,94670.0,0.24870322]
[1745651486774,0.3631692,94671.0,94670.0,0.45987462]
[1745651486978,0.3631692,94671.0,94670.0,0.47225094]
[1745651487373,0.3631692,94671.0,94670.0,0.47225029]
[1745651489075,0.3631692,94671.0,94670.0,0.47225046]
[1745651491170,0.3631692,94671.0,94670.0,0.45987462]
[1745651491569,0.152,94671.0,94670.0,0.5778782]
[1745651491775,0.152,94671.0,94670.0,0.62815162]
[1745651492888,0.00028,94675.0,94674.0,0.2111625]
[1745651493182,0.00028,94675.0,94674.0,0.29031472]
[1745651493388,0.2111425,94683.0,94682.0,0.2639259]
[1745651493583,0.03,94683.0,94682.0,0.64122912]
[1745651493784,0.2111124,94697.0,94696.0,0.2111112]
[1745651494082,0.3811124,94697.0,94696.0,0.58840929]
[1745651494278,0.3811124,94697.0,94696.0,0.58840889]
[1745651494477,0.3811124,94697.0,94696.0,0.67760231]
[1745651494880,0.3991124,94697.0,94696.0,0.67960231]
[1745651495079,0.3991124,94697.0,94696.0,0.84760231]
[1745651495783,0.4101124,94697.0,94696.0,0.84860231]
[1745651497877,0.4101124,94697.0,94696.0,1.20940231]
[1745651498288,0.4101124,94697.0,94696.0,1.19290462]
[1745651504586,0.199,94697.0,94696.0,1.19290462]
[1745651504792,0.1055432,94710.0,94699.0,0.0527765]
[1745651504996,0.2110975,94707.0,94706.0,0.2638562]
[1745651505289,0.2410975,94707.0,94706.0,0.28035331]
[1745651505687,0.2410975,94707.0,94706.0,0.29659377]
[1745651505895,0.03,94707.0,94706.0,0.29659377]
[1745651506192,0.03,94707.0,94706.0,0.46459377]
[1745651506495,0.031,94707.0,94706.0,0.46459377]
[1745651507192,0.031,94707.0,94706.0,0.4725004]
[1745651507393,0.031,94707.0,94706.0,0.4765004]
[1745651508190,0.0307,94718.0,94706.0,0.703883]
[1745651508391,0.08,94718.0,94717.0,0.5718666]
[1745651508595,0.08,94718.0,94717.0,0.58836371]
[1745651508791,0.08,94718.0,94717.0,0.62056371]
[1745651509091,0.08,94718.0,94717.0,0.80480417]
[1745651509587,0.08,94718.0,94717.0,0.80680417]
[1745651509790,0.0013,94721.0,94717.0,0.70131357]
[1745651509994,0.0052,94728.0,94727.0,0.2110443]
[1745651510290,0.3262421,94728.0,94727.0,0.24378187]
[1745651510881,0.3262421,94728.0,94727.0,0.27568187]
[1745651511088,0.3262421,94728.0,94727.0,0.44368187]
[1745651511496,0.3595421,94728.0,94727.0,0.44368187]
[1745651511991,0.3595421,94728.0,94727.0,0.20073757]
[1745651512182,0.3595421,94728.0,94727.0,0.41178187]
[1745651512993,0.1152,94728.0,94727.0,0.41178187]
[1745651514886,0.3262421,94728.0,94727.0,0.41178187]
[1745651515695,0.3909421,94728.0,94727.0,0.41178187]
[1745651515893,0.3909421,94728.0,94727.0,0.20073757]
[1745651516098,0.3909421,94728.0,94727.0,0.41178187]
[1745651516900,0.3909421,94728.0,94727.0,0.77258187]
[1745651518494,0.3909421,94728.0,94727.0,0.56153757]
[1745651518891,0.3909421,94728.0,94727.0,0.77258187]
[1745651519090,0.3909421,94728.0,94727.0,0.80458187]
[1745651519891,0.3909421,94728.0,94727.0,0.59353757]
[1745651520693,0.3909421,94728.0,94727.0,0.56153286]
[1745651521100,0.6509421,94728.0,94727.0,0.56153286]
[1745651522603,0.0527637,94723.0,94709.0,0.3608]
[1745651522797,0.2110822,94710.0,94709.0,0.3608]
[1745651523003,0.3110822,94710.0,94709.0,0.3608]
[1745651523198,0.3110822,94710.0,94709.0,0.5288]
[1745651523600,0.3728822,94710.0,94709.0,0.5288]
[1745651523802,0.3728822,94710.0,94709.0,0.5328]
[1745651524100,0.3728822,94710.0,94709.0,0.5338]
[1745651526507,0.3728822,94710.0,94709.0,0.7448844]
[1745651526699,0.3728822,94710.0,94709.0,0.5338]
[1745651527099,0.3728822,94710.0,94709.0,0.7448844]
[1745651527295,0.3412822,94710.0,94709.0,0.7448844]
[1745651529506,0.1,94710.0,94709.0,0.7448844]
[1745651529700,0.1,94710.0,94709.0,0.7891549]
[1745651530797,0.1,94710.0,94709.0,0.78915432]
[1745651531296,0.1,94710.0,94709.0,0.89474231]
[1745651532495,0.1,94710.0,94709.0,0.89574231]
[1745651534109,0.0314,94722.0,94721.0,0.2110577]
[1745651534409,0.1214,94722.0,94721.0,0.5718577]
[1745651534602,0.1541,94722.0,94721.0,0.58835053]
[1745651535012,0.1541,94722.0,94721.0,0.60484336]
[1745651535210,0.1541,94722.0,94721.0,0.77284336]
[1745651535511,0.1541,94722.0,94721.0,0.77384336]